bitfinex-derivatives/quotes_BTCF0:USTF0_20250912
["timestamp","ask_amount","ask_price","bid_price","bid_amount"]
[1757643394618,0.301,115550.0,115540.0,0.64404692]
[1757643394822,0.301,115550.0,115540.0,0.98404692]
[1757643395422,0.301,115550.0,115540.0,1.00404692]
[1757643395821,0.48638231,115550.0,115540.0,1.00404692]
[1757643396319,0.301,115550.0,115540.0,1.00404692]
[1757643396521,0.48638231,115550.0,115540.0,1.00404692]
[1757643396821,0.48638231,115550.0,115540.0,0.29866461]
[1757643397021,0.48638231,115550.0,115540.0,0.64404692]
[1757643397823,0.48638231,115550.0,115540.0,0.66404692]
[1757643399120,0.48638231,115550.0,115540.0,0.29866461]
[1757643399419,0.67176462,115550.0,115540.0,0.04004]
[1757643401624,0.48638231,115550.0,115540.0,0.04004]
[1757643402628,0.67176462,115550.0,115540.0,0.04004]
[1757643403625,0.48638231,115550.0,115540.0,0.04004]
[1757643406430,1.28342231,115550.0,115540.0,0.04004]
[1757643407231,1.28338231,115550.0,115540.0,0.04004]
[1757643407420,1.28358231,115550.0,115540.0,0.04004]
[1757643412836,1.0982,115550.0,115540.0,0.04004]
[1757643413035,1.28358231,115550.0,115540.0,0.04004]
[1757643413237,1.28314231,115550.0,115540.0,0.22542231]
[1757643413534,1.28314231,115550.0,115540.0,0.04004]
[1757643414434,0.301,115550.0,115540.0,1.23867242]
[1757643414741,0.231,115550.0,115540.0,1.43389415]
[1757643415631,0.231,115550.0,115540.0,1.32519042]
[1757643418341,0.231,115550.0,115540.0,1.43389415]
[1757643419143,0.231,115550.0,115540.0,1.34737615]
[1757643419643,0.231,115550.0,115540.0,1.23867242]
[1757643422550,0.231,115550.0,115540.0,1.34737615]
[1757643422849,0.231,115550.0,115540.0,1.23867242]
[1757643423849,0.43916231,115550.0,115540.0,0.47329011]
[1757643424050,0.43916231,115550.0,115540.0,0.73749011]
[1757643424454,0.43916231,115550.0,115540.0,0.5521078]
[1757643424651,0.43916231,115550.0,115540.0,0.73749011]
[1757643425345,0.43916231,115550.0,115540.0,0.47329011]
[1757643425541,0.43916231,115550.0,115540.0,0.24329011]
[1757643426355,0.25378,115550.0,115540.0,0.24329011]
[1757643426551,0.43916231,115550.0,115540.0,0.41329011]
[1757643427152,0.41638231,115550.0,115540.0,0.41329011]
[1757643427350,0.41638231,115550.0,115540.0,0.24329011]
[1757643427551,0.41638231,115550.0,115540.0,0.40329011]
[1757643429357,0.231,115550.0,115540.0,0.40329011]
[1757643429559,0.41638231,115550.0,115540.0,0.40329011]
[1757643429857,0.231,115550.0,115540.0,0.40329011]
[1757643430058,0.41638231,115550.0,115540.0,0.24329011]
[1757643430258,0.231,115550.0,115540.0,0.41329011]
[1757643430558,0.43916231,115550.0,115540.0,0.41329011]
[1757643431251,0.43916231,115550.0,115540.0,0.52199384]
[1757643431460,0.43916231,115550.0,115540.0,0.53199384]
[1757643431956,0.43916231,115550.0,115540.0,0.34661153]
[1757643432162,0.43916231,115550.0,115540.0,0.52199384]
[1757643433052,0.43916231,115550.0,115540.0,0.43081153]
[1757643433258,0.43916231,115550.0,115540.0,0.79619384]
[1757643434260,0.43916231,115550.0,115540.0,0.3221078]
[1757643434458,0.43916231,115550.0,115540.0,0.43081153]
[1757643435360,0.43916231,115550.0,115540.0,0.3221078]
[1757643435960,0.43916231,115550.0,115540.0,0.43081153]
[1757643436262,0.25378,115550.0,115540.0,0.61619384]
[1757643436462,0.43916231,115550.0,115540.0,0.61619384]
[1757643436664,0.43916231,115550.0,115540.0,0.43081153]
[1757643436957,1.41958462,115550.0,115540.0,0.43081153]
[1757643437161,1.66958462,115550.0,115540.0,0.43081153]
[1757643437362,1.66958462,115550.0,115540.0,0.3221078]
[1757643438268,1.29882,115550.0,115540.0,0.3221078]
[1757643438766,1.48424231,115550.0,115540.0,0.3221078]
[1757643438966,1.48424231,115550.0,115540.0,0.16661153]
[1757643439362,1.48424231,115550.0,115540.0,0.0579078]
[1757643439665,0.68916231,115550.0,115540.0,0.0579078]
[1757643439969,1.29886,115550.0,115540.0,0.0579078]
[1757643440166,1.48424231,115550.0,115540.0,0.0579078]
[1757643440465,1.29886,115550.0,115540.0,0.16661153]
[1757643440767,1.48424231,115550.0,115540.0,0.16661153]
[1757643441066,0.50378,115550.0,115540.0,0.0579078]
[1757643441365,1.48424231,115550.0,115540.0,0.16661153]
[1757643443362,1.48424231,115550.0,115540.0,0.0579078]
[1757643444167,1.48424231,115550.0,115540.0,0.16661153]
[1757643445972,0.68916231,115550.0,115540.0,0.16661153]
[1757643446359,1.48424231,115550.0,115540.0,0.16661153]
[1757643448673,1.48424231,115550.0,115540.0,0.0579078]
[1757643448872,0.68916231,115550.0,115540.0,0.0579078]
[1757643449073,1.48424231,115550.0,115540.0,0.0579078]
[1757643450273,1.48424231,115550.0,115540.0,0.24329011]
[1757643450467,1.48424231,115550.0,115540.0,0.16661153]
[1757643450965,1.48424231,115550.0,115540.0,0.0579078]
[1757643453076,1.48424231,115550.0,115540.0,0.16661153]
[1757643453476,1.48424231,115550.0,115540.0,0.0579078]
[1757643455479,1.48424231,115550.0,115540.0,0.16661153]
[1757643456080,1.48424231,115550.0,115540.0,0.35199384]
[1757643456281,1.29886,115550.0,115540.0,0.16661153]
[1757643456485,1.42248085,115550.0,115540.0,0.16661153]
[1757643457280,1.29886,115550.0,115540.0,0.16661153]
[1757643457583,1.42248085,115550.0,115540.0,0.16661153]
[1757643457778,1.29886,115550.0,115540.0,0.16661153]
[1757643457981,1.42248085,115550.0,115540.0,0.16661153]
[1757643458885,1.29886,115550.0,115540.0,0.16661153]
[1757643459078,1.42248085,115550.0,115540.0,0.0579078]
[1757643459279,1.17248085,115550.0,115540.0,0.0579078]
[1757643461287,1.17248085,115550.0,115540.0,0.16661153]
[1757643461480,1.17248085,115550.0,115540.0,0.0579078]
[1757643462883,1.04886,115550.0,115540.0,0.0579078]
[1757643463177,1.02604,115550.0,115540.0,1.0751495]
[1757643463478,1.02604,115550.0,115540.0,1.18385323]
[1757643463781,1.02604,115550.0,115540.0,1.06023238]
[1757643464379,0.231,115550.0,115540.0,1.06023238]
[1757643464682,1.02604,115550.0,115540.0,1.06023238]
[1757643465581,0.231,115550.0,115540.0,1.18385323]
[1757643466085,0.25227,115550.0,115540.0,1.0751495]
[1757643466283,0.231,115550.0,115540.0,0.8279078]
[1757643466683,0.231,115550.0,115540.0,1.18385323]
[1757643467184,0.231,115550.0,115540.0,1.0751495]
[1757643467873,0.231,115550.0,115540.0,0.93661153]
[1757643468076,0.231,115550.0,115540.0,1.18385323]
[1757643468476,0.231,115550.0,115540.0,1.44805323]
[1757643470672,0.231,115550.0,115540.0,1.3393495]
[1757643472486,0.231,115550.0,115540.0,1.0751495]
[1757643472679,0.231,115550.0,115540.0,0.8251495]
[1757643473188,0.231,115550.0,115540.0,0.93385323]
[1757643476082,0.25242,115550.0,115540.0,0.93385323]
[1757643476386,0.231,115550.0,115540.0,0.93385323]
[1757643476886,0.25242,115550.0,115540.0,0.93385323]
[1757643477085,0.231,115550.0,115540.0,0.93385323]
[1757643478287,0.231,115550.0,115540.0,0.68661153]
[1757643478586,0.231,115550.0,115540.0,0.93385323]
[1757643480991,0.231,115550.0,115540.0,0.91598543]
[1757643482081,0.231,115550.0,115540.0,0.66874373]
[1757643482392,0.231,115550.0,115540.0,0.91598543]
[1757643484395,0.231,115550.0,115540.0,0.8072817]
[1757643485194,0.231,115550.0,115540.0,0.91598543]
[1757643485594,0.231,115550.0,115540.0,0.8072817]
[1757643486596,0.25242,115550.0,115540.0,0.8072817]
[1757643488296,0.25242,115550.0,115540.0,0.68366085]
[1757643488490,0.25242,115550.0,115540.0,0.27004]
[1757643488692,0.25242,115550.0,115540.0,0.39366085]
[1757643488994,0.25242,115550.0,115540.0,0.78366085]
[1757643490196,0.231,115550.0,115540.0,0.78366085]
[1757643490398,0.231,115550.0,115540.0,0.89236458]
[1757643490598,0.231,115550.0,115540.0,1.01598543]
[1757643491099,0.25242,115550.0,115540.0,0.51236458]
[1757643491796,0.62604085,115550.0,115540.0,0.14874373]
[1757643492304,1.42156085,115550.0,115540.0,0.45236458]
[1757643492601,1.42156085,115550.0,115540.0,0.22004]
[1757643492806,1.42156085,115550.0,115540.0,0.04004]
[1757643492990,0.50242,115550.0,115540.0,0.21004]
[1757643493195,1.19998,115550.0,115540.0,0.21004]
[1757643494501,1.29782,115550.0,115540.0,0.34366085]
[1757643495002,1.29782,115550.0,115540.0,0.45236458]
[1757643496605,1.29782,115550.0,115540.0,0.16366085]
[1757643496803,1.29782,115550.0,115540.0,0.34366085]
[1757643497204,0.50242,115550.0,115540.0,0.34366085]
[1757643497404,1.29762,115550.0,115540.0,0.34366085]
[1757643497600,0.231,115550.0,115540.0,0.2872817]
[1757643497907,0.231,115550.0,115540.0,0.97598543]
[1757643498205,0.231,115550.0,115540.0,0.8672817]
[1757643498506,0.231,115550.0,115540.0,0.97625651]
[1757643499004,0.231,115550.0,115540.0,0.8672817]
[1757643501504,0.231,115550.0,115540.0,0.976257]
[1757643503909,0.231,115550.0,115540.0,0.8672817]
[1757643505306,0.231,115550.0,115540.0,0.97625655]
[1757643506913,0.231,115550.0,115540.0,0.72901485]
[1757643507115,0.231,115550.0,115540.0,0.97625655]
[1757643508114,0.231,115550.0,115540.0,0.8672817]
[1757643508614,0.231,115550.0,115540.0,0.97625155]
[1757643508916,0.231,115550.0,115540.0,0.8672817]
[1757643510017,0.231,115550.0,115540.0,0.62004]
[1757643510216,0.231,115550.0,115540.0,0.8672817]
[1757643514514,0.231,115550.0,115540.0,1.06276488]
[1757643515818,0.231,115550.0,115540.0,0.9537999]
[1757643516423,0.231,115550.0,115540.0,1.0772508]
[1757643516624,0.231,115550.0,115540.0,1.18621578]
[1757643517329,0.231,115550.0,115540.0,1.62156208]
[1757643517527,0.13585872,115550.0,115540.0,1.5125971]
[1757643517728,0.311,115550.0,115540.0,1.5125971]
[1757643518531,0.276,115550.0,115540.0,1.5125971]
[1757643519333,0.276,115550.0,115540.0,1.2625971]
[1757643519833,0.276,115550.0,115540.0,1.37150734]
[1757643520733,0.276,115550.0,115540.0,2.16722734]
[1757643522435,0.276,115550.0,115540.0,1.37150734]
[1757643522628,0.276,115550.0,115540.0,2.16718734]
[1757643522933,0.276,115550.0,115540.0,1.37150734]
[1757643523133,0.276,115550.0,115540.0,2.16698734]
[1757643524733,0.276,115550.0,115540.0,2.0580771]
[1757643526534,0.276,115550.0,115540.0,2.21379182]
[1757643528035,0.276,115550.0,115540.0,2.0580771]
[1757643528427,0.276,115550.0,115540.0,2.0575571]
[1757643529130,0.276,115550.0,115540.0,1.2625971]
[1757643529334,0.276,115550.0,115540.0,1.0772508]
[1757643529535,0.276,115550.0,115540.0,1.8722108]
[1757643530240,0.276,115550.0,115540.0,1.89459753]
[1757643530532,0.7113463,115550.0,115540.0,1.09963753]
[1757643530738,0.7477463,115550.0,115540.0,1.6003463]
[1757643531136,0.7477463,115550.0,115540.0,1.7856926]
[1757643531735,0.54897,115550.0,115540.0,1.7856926]
[1757643534534,0.54897,115550.0,115540.0,1.89461765]
[1757643535441,0.54897,115550.0,115540.0,1.09965765]
[1757643535739,0.54897,115550.0,115540.0,1.89461765]
[1757643536342,0.7482663,115550.0,115540.0,0.71651505]
[1757643536535,0.7482663,115550.0,115540.0,1.7732426]
[1757643537230,0.7482663,115550.0,115540.0,0.02759]
[1757643537431,0.9336126,115550.0,115540.0,0.13651838]
[1757643537942,0.9336126,115550.0,115540.0,0.11392838]
[1757643539739,0.03537,115530.0,115520.0,0.15571472]
[1757643539944,1.4810226,115530.0,115520.0,0.15571472]
[1757643540237,1.4810226,115530.0,115490.0,0.09563126]
[1757643540238,0.01395,115520.0,115510.0,0.17816472]
[1757643540543,0.7260626,115520.0,115510.0,0.25681472]
[1757643540742,1.1814379,115520.0,115510.0,0.23436472]
[1757643540941,1.1814379,115520.0,115510.0,0.00865]
[1757643541136,0.9960916,115520.0,115510.0,0.00865]
[1757643541442,0.9970916,115520.0,115510.0,0.01565]
[1757643541836,1.191077,115520.0,115510.0,0.01565]
[1757643542035,0.9970916,115520.0,115510.0,0.01365]
[1757643542239,0.626399,115520.0,115510.0,0.01365]
[1757643542430,1.7930116,115520.0,115510.0,0.01365]
[1757643542741,1.7930116,115520.0,115510.0,0.01565]
[1757643543239,1.422239,115520.0,115510.0,0.01565]
[1757643543643,1.7929316,115520.0,115510.0,0.01565]
[1757643544642,1.49185098,115520.0,115510.0,0.01565]
[1757643544843,1.86254358,115520.0,115510.0,0.01565]
[1757643546147,1.06670358,115520.0,115510.0,0.01565]
[1757643546335,0.5617453,115520.0,115510.0,0.2234463]
[1757643546639,0.7470916,115520.0,115510.0,0.0381]
[1757643546833,1.5436116,115520.0,115510.0,0.0381]
[1757643547034,0.376399,115520.0,115510.0,0.0381]
[1757643547239,1.5436516,115520.0,115510.0,0.0381]
[1757643548238,1.172959,115520.0,115510.0,0.0381]
[1757643548442,1.5436516,115520.0,115510.0,0.0381]
[1757643550037,0.7470916,115520.0,115510.0,0.0381]
[1757643550244,0.376399,115520.0,115510.0,0.2360763]
[1757643550440,0.5477953,115520.0,115510.0,0.4060763]
[1757643550642,0.362449,115520.0,115510.0,0.6160763]
[1757643550846,0.362449,115520.0,115510.0,0.9860763]
[1757643551443,0.341029,115520.0,115510.0,0.9860763]
[1757643551838,0.341029,115520.0,115510.0,1.1714226]
[1757643552050,0.341029,115520.0,115510.0,1.2579633]
[1757643553841,0.341029,115520.0,115510.0,1.1714226]
[1757643554040,0.341029,115520.0,115510.0,0.9860763]
[1757643554245,0.362449,115520.0,115510.0,0.7360763]
[1757643554446,0.5477953,115520.0,115510.0,0.55073]
[1757643554746,0.362449,115520.0,115510.0,0.7360763]
[1757643557755,0.362449,115520.0,115510.0,0.55073]
[1757643558055,0.362449,115520.0,115510.0,0.7360763]
[1757643558851,0.362449,115520.0,115510.0,0.55073]
[1757643559059,0.362449,115520.0,115510.0,0.7360763]
[1757643559060,0.5617453,115520.0,115510.0,0.7360763]
[1757643560054,0.5617453,115520.0,115510.0,0.4260763]
[1757643561056,0.5617453,115520.0,115510.0,0.24073]
[1757643561257,0.5617453,115520.0,115510.0,0.4260763]
[1757643562156,0.5477953,115520.0,115510.0,0.24073]
[1757643562360,0.5477953,115520.0,115510.0,0.4260763]
[1757643563261,0.5477953,115520.0,115510.0,0.8360763]
[1757643563651,1.159729,115520.0,115510.0,0.8360763]
[1757643564057,0.341029,115520.0,115510.0,1.0214226]
[1757643564258,0.341029,115520.0,115510.0,1.3579633]
[1757643566765,0.341029,115520.0,115510.0,2.1552833]
[1757643567960,0.321,115520.0,115510.0,1.3579633]
[1757643568164,0.321,115520.0,115510.0,2.1550433]
[1757643568564,0.321,115520.0,115510.0,1.3579633]
[1757643568866,0.321,115520.0,115510.0,2.1549233]
[1757643569361,0.321,115520.0,115510.0,1.3579633]
[1757643569565,0.321,115520.0,115510.0,2.2633279]
[1757643571568,0.321,115520.0,115510.0,2.1549233]
[1757643573668,0.251,115520.0,115510.0,2.4402696]
[1757643573862,0.10207162,115520.0,115510.0,2.4402696]
[1757643574062,0.001,115520.0,115510.0,2.5360442]
[1757643574262,0.301,115520.0,115510.0,2.5360442]
[1757643574672,0.31475,115520.0,115510.0,2.5360442]
[1757643574866,0.31375,115520.0,115510.0,2.5360442]
[1757643575071,0.01375,115530.0,115520.0,0.0865332]
[1757643575375,0.01284,115540.0,115530.0,0.0865257]
[1757643575671,0.01284,115540.0,115530.0,1.8244583]
[1757643575672,0.29284,115540.0,115530.0,1.8244583]
[1757643575872,0.29284,115540.0,115530.0,1.4537657]
[1757643576173,0.29284,115540.0,115530.0,1.8331083]
[1757643577066,0.29284,115540.0,115530.0,0.6651757]
[1757643577271,0.31448,115540.0,115530.0,1.8329883]
[1757643577463,0.31448,115540.0,115530.0,1.0348683]
[1757643577669,0.31448,115540.0,115530.0,1.7455426]
[1757643577864,0.31448,115540.0,115530.0,1.7465426]
[1757643578061,0.31548,115540.0,115530.0,1.7475426]
[1757643578262,0.31548,115540.0,115530.0,1.5621563]
[1757643578479,0.31548,115540.0,115530.0,0.70324993]
[1757643578670,0.31548,115540.0,115530.0,1.37681]
[1757643578867,0.68907993,115540.0,115530.0,1.37681]
[1757643579170,0.56548,115540.0,115530.0,1.50540993]
[1757643579371,0.31548,115540.0,115530.0,1.50540993]
[1757643579564,0.56548,115540.0,115530.0,0.43924993]
[1757643580571,0.56548,115540.0,115530.0,0.43824993]
[1757643580772,0.56548,115540.0,115530.0,0.43924993]
[1757643581476,0.56548,115540.0,115530.0,0.43824993]
[1757643582269,0.68907993,115540.0,115530.0,0.43824993]
[1757643582478,0.68907993,115540.0,115530.0,0.31465]
[1757643583573,0.56548,115540.0,115530.0,0.31465]
[1757643583773,0.56548,115540.0,115530.0,0.43824993]
[1757643592483,0.56548,115540.0,115530.0,0.54665453]
[1757643595395,0.31548,115540.0,115530.0,0.75678016]
[1757643595588,0.31548,115540.0,115530.0,0.63318023]
[1757643597400,0.29384,115540.0,115530.0,1.00678016]
[1757643597589,0.29384,115540.0,115530.0,0.88318023]
[1757643597790,0.31613,115540.0,115530.0,0.88318023]
[1757643597999,0.31613,115540.0,115530.0,1.00678016]
[1757643598600,0.31613,115540.0,115530.0,0.88318023]
[1757643600395,0.31613,115540.0,115530.0,0.6730546]
[1757643600602,0.31613,115540.0,115530.0,1.59209453]
[1757643601700,0.31613,115540.0,115530.0,1.67862023]
[1757643602701,0.31613,115540.0,115530.0,0.88318023]
[1757643603001,0.31613,115540.0,115530.0,1.67858023]
[1757643604493,0.31613,115540.0,115530.0,1.80218016]
[1757643604692,0.29384,115540.0,115530.0,1.80218016]
[1757643604902,0.29384,115540.0,115530.0,1.67858023]
[1757643605103,0.29384,115540.0,115530.0,1.57017563]
[1757643605304,0.29384,115540.0,115530.0,1.69377556]
[1757643606301,0.29384,115540.0,115530.0,1.57017563]
[1757643607406,0.29384,115540.0,115530.0,1.80218016]
[1757643607708,0.29384,115540.0,115530.0,1.67858023]
[1757643608004,0.29384,115540.0,115530.0,1.59205453]
[1757643608209,0.31613,115540.0,115530.0,1.59201453]
[1757643608597,0.31613,115540.0,115530.0,0.4230546]
[1757643608803,0.31613,115540.0,115530.0,1.34201453]
[1757643609301,0.31613,115540.0,115530.0,1.55214016]
[1757643609506,0.29384,115540.0,115530.0,1.55214016]
[1757643610711,0.29384,115540.0,115530.0,1.80214016]
[1757643611111,0.29384,115540.0,115530.0,1.69373556]
[1757643611413,0.29384,115540.0,115530.0,1.84928985]
[1757643612811,0.29384,115540.0,115530.0,1.69373556]
[1757643616014,0.29384,115540.0,115530.0,1.84928985]
[1757643616906,0.29384,115540.0,115530.0,0.84380422]
[1757643617109,0.31613,115540.0,115530.0,1.63912422]
[1757643618113,0.31613,115540.0,115530.0,1.26552429]
[1757643618308,0.31613,115540.0,115530.0,0.59380422]
[1757643618510,0.31613,115540.0,115530.0,1.23356993]
[1757643620617,0.31613,115540.0,115530.0,1.32009563]
[1757643624220,0.29384,115540.0,115530.0,1.32009563]
[1757643624710,0.29384,115540.0,115530.0,1.44369556]
[1757643624916,0.29384,115540.0,115530.0,1.32009563]
[1757643625117,0.29384,115540.0,115530.0,1.1964957]
[1757643625317,0.29384,115540.0,115530.0,1.32009563]
[1757643626522,0.29384,115540.0,115530.0,1.47564992]
[1757643628423,0.31604,115540.0,115530.0,0.68032992]
[1757643628614,0.31604,115540.0,115530.0,1.47560992]
[1757643631225,0.31604,115540.0,115530.0,1.35200999]
[1757643631527,0.31604,115540.0,115530.0,1.47560992]
[1757643632329,0.31604,115540.0,115530.0,1.58441098]
[1757643633029,0.31604,115540.0,115530.0,1.21873106]
[1757643633229,0.31604,115540.0,115530.0,1.34233099]
[1757643633430,0.31604,115540.0,115530.0,1.34229099]
[1757643633629,0.31604,115540.0,115530.0,1.23348993]
[1757643634027,0.31604,115540.0,115530.0,0.43824993]
[1757643634330,0.31604,115540.0,115530.0,1.34230854]
[1757643634518,0.31604,115540.0,115530.0,1.23348993]
[1757643634730,0.31604,115540.0,115530.0,1.38904422]
[1757643636927,0.43963993,115540.0,115530.0,1.38904422]
[1757643637125,0.31604,115540.0,115530.0,1.38904422]
[1757643638331,0.31604,115540.0,115530.0,1.45085484]
[1757643638628,0.31604,115540.0,115530.0,1.29530055]
[1757643641828,0.31604,115540.0,115530.0,1.45085484]
[1757643646735,0.29384,115540.0,115530.0,1.72279039]
[1757643646934,0.29384,115540.0,115530.0,1.97279039]
[1757643647436,0.29384,115540.0,115530.0,1.8172361]
[1757643648534,0.29384,115540.0,115530.0,1.97297895]
[1757643649434,0.31604,115540.0,115530.0,0.80691785]
[1757643649636,0.31604,115540.0,115530.0,1.97289895]
[1757643650633,0.31604,115540.0,115530.0,1.7009634]
[1757643652135,0.31604,115540.0,115530.0,1.4509634]
[1757643653840,0.31604,115540.0,115530.0,1.72289945]
[1757643660356,0.31604,115540.0,115530.0,0.55691835]
[1757643660554,0.31604,115540.0,115530.0,1.72285945]
[1757643661456,0.31604,115540.0,115530.0,0.47039285]
[1757643661655,0.31604,115540.0,115530.0,1.63629395]
[1757643665552,0.31604,115540.0,115530.0,0.84121395]
[1757643665757,0.31604,115540.0,115530.0,1.4508434]
[1757643666258,0.31604,115540.0,115530.0,1.29510055]
[1757643669761,0.31604,115540.0,115530.0,1.4805111]
[1757643671365,0.31604,115540.0,115530.0,0.31465]
[1757643671564,0.31604,115540.0,115530.0,1.29506055]
[1757643672161,0.31604,115540.0,115530.0,1.40407673]
[1757643673266,0.31604,115540.0,115530.0,1.29506055]
[1757643674068,0.31604,115540.0,115530.0,1.29502055]
[1757643676375,0.50145055,115540.0,115530.0,0.31465]
[1757643676574,0.50145055,115540.0,115530.0,0.50006055]
[1757643676772,0.31604,115540.0,115530.0,0.50006055]
[1757643679177,0.31604,115540.0,115530.0,0.6558034]
[1757643681480,0.31604,115540.0,115530.0,0.50006055]
[1757643682081,0.50145055,115540.0,115530.0,0.50006055]
[1757643682577,0.50145055,115540.0,115530.0,0.31465]
[1757643682778,0.6868611,115540.0,115530.0,1.29490055]
[1757643682979,0.31604,115540.0,115530.0,1.29490055]
[1757643683172,0.50145055,115540.0,115530.0,1.29490055]
[1757643685779,0.6868611,115540.0,115530.0,0.31465]
[1757643685982,0.6868611,115540.0,115530.0,0.50006055]
[1757643687084,0.6868611,115540.0,115530.0,0.31465]
[1757643687284,0.6868611,115540.0,115530.0,0.50006055]
[1757643687484,0.50145055,115540.0,115530.0,0.50006055]
[1757643688087,0.22145055,115540.0,115530.0,0.50006055]
[1757643688987,0.22145055,115540.0,115530.0,0.6558034]
[1757643689689,0.01384,115540.0,115530.0,1.3631502]
[1757643690187,0.01384,115540.0,115530.0,1.17773965]
[1757643690400,0.01384,115540.0,115530.0,1.20740735]
[1757643690590,0.01375,115550.0,115540.0,0.0865182]
[1757643690887,0.01375,115550.0,115540.0,2.18048555]
[1757643691087,0.01375,115550.0,115540.0,2.43048555]
[1757643691892,0.01375,115550.0,115540.0,2.43913555]
[1757643692093,0.01475,115550.0,115540.0,2.44213555]
[1757643692792,0.01475,115550.0,115540.0,2.44313555]
[1757643693091,0.01475,115550.0,115540.0,2.44613555]
[1757643693593,0.01575,115550.0,115540.0,2.45013555]
[1757643694696,0.01575,115550.0,115540.0,2.45313555]
[1757643695602,0.01375,115560.0,115550.0,0.0865107]
[1757643695897,0.01375,115560.0,115550.0,1.26274235]
[1757643696095,0.01375,115560.0,115550.0,1.0773318]
[1757643696293,0.01375,115560.0,115550.0,1.51274235]
[1757643696603,0.01375,115560.0,115550.0,1.3273318]
[1757643697402,0.01475,115560.0,115550.0,1.3313318]
[1757643698402,0.01475,115560.0,115550.0,1.21553156]
[1757643698403,0.01575,115560.0,115550.0,1.21553156]
[1757643699406,0.01575,115560.0,115550.0,0.96553156]
[1757643700700,0.01375,115570.0,115560.0,0.10369013]
[1757643700904,0.01375,115570.0,115560.0,1.93753454]
[1757643702007,0.01475,115570.0,115560.0,1.94453454]
[1757643702807,0.01475,115570.0,115560.0,1.94853454]
[1757643703209,0.01475,115570.0,115560.0,1.15401454]
[1757643703410,0.01475,115570.0,115560.0,1.57792325]
[1757643703710,0.01475,115570.0,115560.0,1.94845454]
[1757643705714,0.01475,115570.0,115560.0,1.83966142]
[1757643705914,0.01475,115570.0,115560.0,1.91040484]
[1757643706116,0.01475,115570.0,115560.0,2.17230484]
[1757643708211,0.01475,115570.0,115560.0,2.32737991]
[1757643712219,0.01475,115570.0,115560.0,2.42737991]
[1757643713115,0.01315,115580.0,115570.0,0.086496]
[1757643713321,0.01315,115580.0,115570.0,0.91844511]
[1757643714025,0.01315,115580.0,115570.0,0.81000643]
[1757643714323,0.01315,115580.0,115570.0,1.06551274]
[1757643715126,0.01315,115580.0,115570.0,1.06551274]
[1757643715324,0.01315,115580.0,115570.0,1.73616231]
[1757643715525,0.01315,115580.0,115570.0,1.73916231]
[1757643715823,0.01415,115580.0,115570.0,1.74516231]
[1757643716825,0.01415,115580.0,115570.0,1.87267274]
[1757643717520,0.01415,115580.0,115570.0,1.74916231]
[1757643717928,0.01415,115580.0,115570.0,2.01106231]
[1757643718317,0.01415,115580.0,115570.0,2.01971231]
[1757643718519,0.01415,115580.0,115570.0,2.13922274]
[1757643718723,0.01315,115600.0,115590.0,0.0864809]
[1757643718924,0.01315,115600.0,115590.0,1.7224609]
[1757643719519,0.0126,115610.0,115600.0,0.0864735]
[1757643719718,0.0126,115610.0,115600.0,1.00700479]
[1757643719925,0.0126,115610.0,115600.0,1.80108479]
[1757643720323,0.0126,115610.0,115600.0,1.87197683]
[1757643721028,0.0136,115610.0,115600.0,1.87797683]
[1757643721230,0.0136,115610.0,115600.0,1.98640051]
[1757643722427,0.0136,115610.0,115600.0,1.87797683]
[1757643723231,0.0136,115610.0,115600.0,1.98940051]
[1757643723525,0.0136,115610.0,115600.0,1.88097683]
[1757643723731,0.0136,115610.0,115600.0,1.88085683]
[1757643728032,0.0136,115610.0,115600.0,1.98085683]
[1757643728929,0.0136,115610.0,115600.0,1.18689683]
[1757643729131,0.0136,115610.0,115600.0,1.98069683]
[1757643729721,0.0136,115610.0,115600.0,2.24259683]
[1757643730032,0.0136,115610.0,115600.0,1.44879683]
[1757643730332,0.0136,115610.0,115600.0,2.24259683]
[1757643734440,0.0136,115610.0,115600.0,1.44879683]
[1757643734735,0.0136,115610.0,115600.0,2.24243683]
[1757643734935,0.0136,115610.0,115600.0,1.44879683]
[1757643735137,0.0136,115610.0,115600.0,2.24243683]
[1757643736333,0.0136,115610.0,115600.0,2.25108683]
[1757643737242,0.0136,115610.0,115600.0,2.13288683]
[1757643737445,5.805e-05,115610.0,115600.0,2.38284683]
[1757643737738,0.0126,115620.0,115610.0,0.1864661]
[1757643737945,0.0126,115620.0,115610.0,0.91997653]
[1757643739144,0.0126,115620.0,115610.0,0.92197653]
[1757643739345,0.0136,115620.0,115610.0,0.92697653]
[1757643742446,0.0136,115620.0,115610.0,1.07067653]
[1757643743842,0.0126,115630.0,115620.0,0.0864585]
[1757643744043,0.0126,115630.0,115620.0,1.86530893]
[1757643744746,0.0126,115630.0,115620.0,1.96526893]
[1757643745243,0.0126,115630.0,115620.0,1.96626893]
[1757643745649,0.0136,115630.0,115620.0,1.97126893]
[1757643745846,0.0136,115630.0,115620.0,1.17786893]
[1757643746150,0.0136,115630.0,115620.0,1.97122893]
[1757643746948,0.0136,115630.0,115620.0,1.17786893]
[1757643747145,0.0136,115630.0,115620.0,1.97122893]
[1757643747653,0.0136,115630.0,115620.0,1.09141043]
[1757643747854,0.0136,115630.0,115620.0,1.97118893]
[1757643751755,0.0136,115630.0,115620.0,1.97974893]
[1757643752452,0.0136,115630.0,115620.0,1.18650893]
[1757643752660,0.0136,115630.0,115620.0,1.97974893]
[1757643753345,0.0136,115630.0,115620.0,1.18650893]
[1757643753545,0.0136,115630.0,115620.0,1.97970893]
[1757643756256,0.0136,115630.0,115620.0,2.08813261]
[1757643756957,0.0136,115630.0,115620.0,2.23183261]
[1757643758359,0.0136,115630.0,115620.0,2.12340893]
[1757643759554,0.0136,115630.0,115620.0,2.23226234]
[1757643760461,0.0136,115630.0,115620.0,2.66396134]
[1757643760664,0.0136,115630.0,115620.0,1.76190793]
[1757643760865,0.0136,115630.0,115620.0,2.55494793]
[1757643761962,0.0136,115630.0,115620.0,2.66380134]
[1757643763872,0.0136,115630.0,115620.0,1.31555191]
[1757643764066,0.0136,115630.0,115620.0,2.66376134]
[1757643764266,0.0136,115630.0,115620.0,2.55490793]
[1757643764776,0.0136,115630.0,115620.0,1.916983]
[1757643764970,0.0136,115630.0,115620.0,2.709983]
[1757643765576,0.0136,115630.0,115620.0,2.55486793]
[1757643766772,0.0136,115630.0,115620.0,2.66376565]